fUST/lending_fUST_20250609
["ID","MTS","AMOUNT","RATE_DAILY","PERIOD"]
[365114000,1749471043225,-440.0,0.00022739,4]
[365114001,1749471043234,-2157.1,0.00022739,4]
[365114002,1749471043244,-440.0,0.00022739,4]
[365114003,1749471043254,-440.0,0.00022739,4]
[365114004,1749471043263,-2318.14,0.00022739,4]
[365114005,1749471043274,-440.0,0.00022739,4]
[365114006,1749471043284,-440.0,0.00022739,4]
[365114007,1749471043294,-440.0,0.00022739,4]
[365114008,1749471043303,-1488.32,0.00022739,4]
[365114009,1749471043312,-371.8277226,0.00022739,4]
[365114010,1749471043321,-390.0,0.00022739,4]
[365114011,1749471043331,-440.0,0.00022739,4]
[365114012,1749471043340,-440.0,0.00022739,4]
[365114013,1749471043350,-505.69,0.00022739,4]
[365114014,1749471043360,-440.0,0.00022739,4]
[365114015,1749471043368,-440.0,0.00022739,4]
[365114016,1749471043378,-485.98946156,0.00022739,4]
[365114017,1749471043388,-440.0,0.00022739,4]
[365114018,1749471043398,-1814.69,0.00022739,4]
[365114019,1749471043408,-440.0,0.00022739,4]
[365114020,1749471043418,-1888.85,0.00022739,4]
[365114021,1749471043427,-1204.0,0.00022739,4]
[365114022,1749471043437,-440.0,0.00022739,4]
[365114023,1749471043449,-440.0,0.00022739,4]
[365114024,1749471043460,-633.32,0.00022739,4]
[365114025,1749471043469,-440.0,0.00022739,4]
[365114026,1749471043559,-520.95849863,0.00022739,4]
[365114027,1749471043569,-583.11,0.00022739,4]
[365114028,1749471043579,-440.0,0.00022739,4]
[365114029,1749471043588,-440.0,0.00022739,4]
[365114030,1749471043598,-400.0,0.00022739,4]
[365114031,1749471043608,-410.0,0.00022739,4]
[365114032,1749471043618,-390.0,0.00022739,4]
[365114033,1749471043628,-868.84,0.00022739,4]
[365114034,1749471043637,-440.0,0.00022739,4]
[365114035,1749471043647,-284.82145463,0.00022739,4]
[365114036,1749471043657,-595.41,0.00022739,4]
[365114037,1749471043667,-440.0,0.00022739,4]
[365114038,1749471043676,-334.21884167,0.00022739,4]
[365114039,1749471043686,-440.0,0.00022739,4]
[365114040,1749471043696,-440.0,0.00022739,4]
[365114041,1749471043706,-440.0,0.00022739,4]
[365114042,1749471043717,-440.0,0.00022739,4]
[365114043,1749471043726,-410.0,0.00022739,4]
[365114044,1749471043737,-440.0,0.00022739,4]
[365114045,1749471043747,-440.0,0.00022739,4]
[365114046,1749471043757,-440.0,0.00022739,4]
[365114047,1749471043767,-440.0,0.00022739,4]
[365114048,1749471043779,-440.0,0.00022739,4]
[365114049,1749471043789,-759.76,0.00022739,4]
[365114050,1749471043799,-440.0,0.00022739,4]
[365114051,1749471043808,-1041.58,0.00022739,4]
[365114052,1749471043818,-1334.19,0.00022739,4]
[365114053,1749471043828,-944.6,0.00022739,4]
[365114054,1749471043837,-440.0,0.00022739,4]
[365114055,1749471043847,-440.0,0.00022739,4]
[365114056,1749471043857,-485.30386907,0.00022739,4]
[365114057,1749471043867,-440.0,0.00022739,4]
[365114058,1749471043877,-440.0,0.00022739,4]
[365114059,1749471043887,-400.0,0.00022739,4]
[365114060,1749471043897,-440.0,0.00022739,4]
[365114061,1749471043906,-440.0,0.00022739,4]
[365114062,1749471043920,-4036.02,0.00022739,4]
[365114063,1749471043929,-440.0,0.00022739,4]
[365114064,1749471043939,-440.0,0.00022739,4]
[365114065,1749471043949,-440.0,0.00022739,4]
[365114066,1749471043960,-534.03512526,0.00022739,4]
[365114067,1749471043971,-440.0,0.00022739,4]
[365114068,1749471043980,-440.0,0.00022739,4]
[365114069,1749471043991,-411.53042223,0.00022739,4]
[365114070,1749471044000,-440.0,0.00022739,4]
[365114071,1749471044010,-1008.09,0.00022739,4]
[365114072,1749471044020,-440.0,0.00022739,4]
[365114073,1749471044030,-941.08,0.00022739,4]
[365114074,1749471044040,-440.0,0.00022739,4]
[365114075,1749471044050,-1870.11,0.00022739,4]
[365114076,1749471044060,-440.0,0.00022739,4]
[365114077,1749471044069,-440.0,0.00022739,4]
[365114078,1749471044079,-440.0,0.00022739,4]
[365114079,1749471044088,-440.0,0.00022739,4]
[365114080,1749471044097,-420.0,0.0002274,2]
[365114081,1749471044108,-207.4,0.00022782,2]
[365114082,1749471044118,-1688.0,0.00022782,2]
[365114083,1749471044128,-500.0,0.00022782,2]
[365114084,1749471044137,-500.0,0.00022782,2]
[365114085,1749471044147,-500.0,0.00022782,2]
[365114086,1749471044157,-500.0,0.00022782,2]
[365114087,1749471044167,-500.0,0.00022782,2]
[365114088,1749471044178,-500.0,0.00022782,2]
[365114089,1749471044188,-500.0,0.00022782,2]
[365114090,1749471044198,-500.0,0.00022782,2]
[365114091,1749471044207,-500.0,0.00022782,2]
[365114092,1749471044217,-500.0,0.00022782,2]
[365114093,1749471044226,-500.0,0.00022782,2]
[365114094,1749471044239,-478.22108732,0.00022782,2]
[365114095,1749471044249,-816.4155173,0.00022831,8]
[365114096,1749471044260,-933.426405,0.00022837,2]
[365114097,1749471044270,-363.74015137,0.00022859,2]
[365114098,1749471044284,-816.4155173,0.00022934,8]
[365114099,1749471044295,-500.0,0.00023,90]
[365114100,1749471044305,-1000.0,0.00023,60]
[365114101,1749471044315,-500.0,0.00023012,4]
[365114102,1749471044325,-500.0,0.00023012,4]
[365114103,1749471044335,-515.76,0.00023013,4]
[365114104,1749471044346,-400.0,0.00023013,4]
[365114105,1749471044356,-440.0,0.00023013,4]
[365114106,1749471044366,-440.0,0.00023013,4]
[365114107,1749471044376,-440.0,0.00023013,4]
[365114108,1749471044385,-440.0,0.00023013,4]
[365114109,1749471044395,-440.0,0.00023013,4]
[365114110,1749471044405,-440.0,0.00023013,4]
[365114111,1749471044414,-390.0,0.00023013,4]
[365114112,1749471044423,-440.0,0.00023013,4]
[365114113,1749471044433,-440.0,0.00023013,4]
[365114114,1749471044442,-440.0,0.00023013,4]
[365114115,1749471044455,-440.0,0.00023013,4]
[365114116,1749471044465,-440.0,0.00023013,4]
[365114117,1749471044475,-553.31251349,0.00023013,4]
[365114118,1749471044484,-440.0,0.00023013,2]
[365114119,1749471044494,-440.0,0.00023013,4]
[365114120,1749471044504,-440.0,0.00023013,4]
[365114121,1749471044514,-440.0,0.00023013,4]
[365114122,1749471044525,-440.0,0.00023013,4]
[365114123,1749471044535,-440.0,0.00023013,4]
[365114124,1749471044544,-440.0,0.00023013,4]
[365114125,1749471044554,-167.77321708,0.00023013,4]
[365114126,1749471044564,-440.0,0.00023013,4]
[365114127,1749471044573,-440.0,0.00023013,4]
[365114128,1749471044583,-440.0,0.00023013,4]
[365114129,1749471044593,-434.84859583,0.00023013,4]
[365114130,1749471044602,-440.0,0.00023013,4]
[365114131,1749471044612,-440.0,0.00023013,4]
[365114132,1749471044621,-186.143096,0.00023013,4]
[365114133,1749471044631,-440.0,0.00023013,4]
[365114134,1749471044641,-440.0,0.00023013,4]
[365114135,1749471044650,-1534.98,0.00023013,4]
[365114136,1749471044660,-1422.06,0.00023013,4]
[365114137,1749471044670,-440.0,0.00023013,4]
[365114138,1749471044679,-440.0,0.00023013,4]
[365114139,1749471044689,-440.0,0.00023013,4]
[365114140,1749471044698,-440.0,0.00023013,4]
[365114141,1749471044708,-568.74,0.00023013,4]
[365114142,1749471044718,-440.0,0.00023013,4]
[365114143,1749471044727,-2157.1,0.00023013,4]
[365114144,1749471044737,-440.0,0.00023013,4]
[365114145,1749471044746,-440.0,0.00023013,4]
[365114146,1749471044756,-2318.14,0.00023013,4]
[365114147,1749471044766,-440.0,0.00023013,4]
[365114148,1749471044777,-440.0,0.00023013,4]
[365114149,1749471044787,-440.0,0.00023013,4]
[365114150,1749471044797,-1488.32,0.00023013,4]
[365114151,1749471044807,-440.0,0.00023013,4]
[365114152,1749471044816,-440.0,0.00023013,4]
[365114153,1749471044826,-505.69,0.00023013,4]
[365114154,1749471044836,-440.0,0.00023013,4]
[365114155,1749471044846,-440.0,0.00023013,4]
[365114156,1749471044855,-440.0,0.00023013,4]
[365114157,1749471044866,-1814.69,0.00023013,4]
[365114158,1749471044876,-440.0,0.00023013,4]
[365114159,1749471044886,-1888.85,0.00023013,4]
[365114160,1749471044896,-1204.0,0.00023013,4]
[365114161,1749471044906,-440.0,0.00023013,4]
[365114162,1749471044915,-440.0,0.00023013,4]
[365114163,1749471044925,-633.32,0.00023013,4]
[365114164,1749471044935,-440.0,0.00023013,4]
[365114165,1749471044944,-583.11,0.00023013,4]
[365114166,1749471044954,-440.0,0.00023013,4]
[365114167,1749471044964,-440.0,0.00023013,4]
[365114168,1749471044974,-868.84,0.00023013,4]
[365114169,1749471044983,-440.0,0.00023013,4]
[365114170,1749471044991,-595.41,0.00023013,4]
[365114171,1749471045000,-440.0,0.00023013,4]
[365114172,1749471045009,-440.0,0.00023013,4]
[365114173,1749471045018,-440.0,0.00023013,4]
[365114174,1749471045030,-400.0,0.00023013,4]
[365114175,1749471045040,-440.0,0.00023013,4]
[365114176,1749471045050,-440.0,0.00023013,4]
[365114177,1749471045060,-440.0,0.00023013,4]
[365114178,1749471045071,-440.0,0.00023013,4]
[365114179,1749471045080,-440.0,0.00023013,4]
[365114180,1749471045163,-440.0,0.00023013,4]
[365114181,1749471045173,-759.76,0.00023013,4]
[365114182,1749471045183,-440.0,0.00023013,4]
[365114183,1749471045193,-1041.58,0.00023013,4]
[365114184,1749471045202,-1334.19,0.00023013,4]
[365114185,1749471045212,-944.6,0.00023013,4]
[365114186,1749471045221,-440.0,0.00023013,4]
[365114187,1749471045231,-440.0,0.00023013,4]
[365114188,1749471045242,-440.0,0.00023013,4]
[365114189,1749471045252,-410.0,0.00023013,4]
[365114190,1749471045262,-579.02836792,0.00023013,4]
[365114191,1749471045272,-440.0,0.00023013,4]
[365114192,1749471045282,-4036.02,0.00023013,4]
[365114193,1749471045292,-440.0,0.00023013,4]
[365114194,1749471045303,-440.0,0.00023013,4]
[365114195,1749471045312,-215.08175579,0.00023013,4]
[365114196,1749471045322,-440.0,0.00023013,4]
[365114197,1749471045331,-440.0,0.00023013,4]
[365114198,1749471045341,-440.0,0.00023013,4]
[365114199,1749471045351,-1008.09,0.00023013,4]
[365114200,1749471045360,-440.0,0.00023013,4]
[365114201,1749471045370,-941.08,0.00023013,4]
[365114202,1749471045379,-440.0,0.00023013,4]
[365114203,1749471045389,-1870.11,0.00023013,4]
[365114204,1749471045399,-440.0,0.00023013,4]
[365114205,1749471045409,-440.0,0.00023013,4]
[365114206,1749471045418,-390.0,0.00023013,4]
[365114207,1749471045427,-440.0,0.00023013,4]
[365114208,1749471045437,-1000.0,0.00023021,2]
[365114209,1749471045448,-503.34321714,0.00023021,2]
[365114210,1749471045460,-193.34467251,0.00023021,2]
[365114211,1749471045469,-1000.0,0.00023021,2]
[365114212,1749471045479,-1000.0,0.00023021,2]
[365114213,1749471045489,-1000.0,0.00023021,2]
[365114214,1749471045500,-1000.0,0.00023021,2]
[365114215,1749471045510,-351.47046417,0.00023021,2]
[365114216,1749471045519,-1007.06152972,0.00023021,2]
[365114217,1749471045533,-1200.0,0.00023021,2]
[365114218,1749471045543,-509.61597638,0.00023021,2]
[365114219,1749471045553,-630.50859295,0.00023021,2]
[365114221,1749471045563,-199.24091782,0.00023021,2]
[365114223,1749471045572,-1000.0,0.00023021,2]
[365114225,1749471045581,-1000.0,0.00023021,2]
[365114226,1749471045591,-816.4155173,0.00023038,8]
[365114228,1749471045600,-732.16,0.000231,7]
[365114230,1749471045609,-963.0,0.00023109,2]
[365114232,1749471045619,-2072.0,0.00023109,2]
[365114234,1749471045628,-709.0,0.00023109,2]
[365114235,1749471045638,-816.4155173,0.00023141,8]
[365114236,1749471045647,-1021.26527396,0.00023166,2]
[365114237,1749471045658,-816.4155173,0.00023245,8]
[365114238,1749471045668,-1098.06223443,0.00023268,2]
[365114239,1749471045678,-500.0,0.00023286,4]
[365114240,1749471045688,-500.0,0.00023286,4]
[365114241,1749471045697,-567.26,0.00023286,4]
[365114242,1749471045709,-160.0,0.00023286,2]
[365114243,1749471045718,-440.0,0.00023287,4]
[365114245,1749471045727,-440.0,0.00023287,4]
[365114247,1749471045736,-440.0,0.00023287,4]
[365114249,1749471045746,-440.0,0.00023287,4]
[365114251,1749471045755,-440.0,0.00023287,4]
[365114253,1749471045765,-390.0,0.00023287,4]
[365114255,1749471045774,-400.49,0.00023287,4]
[365114257,1749471045784,-440.0,0.00023287,4]
[365114259,1749471045793,-440.0,0.00023287,4]
[365114260,1749471045803,-440.0,0.00023287,2]
[365114262,1749471045813,-420.0,0.00023287,4]
[365114264,1749471045823,-342.74454424,0.00023287,4]
[365114267,1749471045832,-440.0,0.00023287,4]
[365114270,1749471045842,-440.0,0.00023287,4]
[365114272,1749471045851,-440.0,0.00023287,4]
[365114273,1749471045860,-1534.98,0.00023287,4]
[365114275,1749471045870,-1422.06,0.00023287,4]
[365114277,1749471045880,-440.0,0.00023287,4]
[365114278,1749471045889,-568.74,0.00023287,4]
[365114279,1749471045898,-440.0,0.00023287,4]
[365114280,1749471045908,-2157.1,0.00023287,4]
[365114281,1749471045918,-440.0,0.00023287,4]
[365114282,1749471045928,-2318.14,0.00023287,4]
[365114284,1749471045938,-440.0,0.00023287,4]
[365114285,1749471045947,-440.0,0.00023287,4]
[365114286,1749471045957,-420.0,0.00023287,4]
[365114287,1749471045967,-1488.32,0.00023287,4]
[365114288,1749471045977,-440.0,0.00023287,4]
[365114290,1749471045988,-440.0,0.00023287,4]
[365114291,1749471045997,-505.69,0.00023287,4]
[365114292,1749471046006,-440.0,0.00023287,4]
[365114293,1749471046016,-440.0,0.00023287,4]
[365114294,1749471046026,-380.0,0.00023287,4]
[365114295,1749471046035,-1814.69,0.00023287,4]
[365114296,1749471046044,-440.0,0.00023287,4]
[365114297,1749471046054,-1888.85,0.00023287,4]
[365114298,1749471046064,-1204.0,0.00023287,4]
[365114299,1749471046073,-440.0,0.00023287,4]
[365114300,1749471046082,-633.32,0.00023287,4]
[365114301,1749471046091,-440.0,0.00023287,4]
[365114302,1749471046101,-583.11,0.00023287,4]
[365114303,1749471046111,-440.0,0.00023287,4]
[365114304,1749471046120,-868.84,0.00023287,4]
[365114305,1749471046129,-258.25171518,0.00023287,4]
[365114306,1749471046139,-595.41,0.00023287,4]
[365114307,1749471046149,-440.0,0.00023287,4]
[365114308,1749471046158,-440.0,0.00023287,4]
[365114309,1749471046168,-440.0,0.00023287,4]
[365114310,1749471046178,-440.0,0.00023287,4]
[365114311,1749471046187,-440.0,0.00023287,4]
[365114312,1749471046197,-440.0,0.00023287,4]
[365114313,1749471046206,-440.0,0.00023287,4]
[365114314,1749471046216,-440.0,0.00023287,4]
[365114315,1749471046225,-759.76,0.00023287,4]
[365114316,1749471046235,-1041.58,0.00023287,4]
[365114317,1749471046245,-1334.19,0.00023287,4]
[365114318,1749471046254,-944.6,0.00023287,4]
[365114319,1749471046264,-440.0,0.00023287,4]
[365114320,1749471046273,-440.0,0.00023287,4]
[365114322,1749471046283,-4036.02,0.00023287,4]
[365114324,1749471046293,-440.0,0.00023287,4]
[365114325,1749471046302,-440.0,0.00023287,4]
[365114326,1749471046312,-440.0,0.00023287,4]
[365114327,1749471046322,-440.0,0.00023287,4]
[365114328,1749471046331,-1008.09,0.00023287,4]
[365114330,1749471046340,-440.0,0.00023287,4]
[365114331,1749471046349,-941.08,0.00023287,4]
[365114332,1749471046358,-440.0,0.00023287,4]
[365114333,1749471046367,-1870.11,0.00023287,4]
[365114334,1749471046377,-440.0,0.00023287,4]
[365114335,1749471046387,-400.0,0.00023287,4]
[365114336,1749471046396,-3000.0,0.000233,2]
[365114337,1749471046405,-3000.0,0.000233,2]
[365114338,1749471046414,-57497.61,0.000233,2]
[365114339,1749471046424,-3000.0,0.0002331,2]
[365114340,1749471046433,-3000.0,0.0002331,2]
[365114341,1749471046443,-150.0,0.00023313,2]
[365114342,1749471046456,-3000.0,0.0002332,2]
[365114343,1749471046465,-3000.0,0.0002332,2]
[365114344,1749471046475,-3000.0,0.0002333,2]
[365114345,1749471046484,-3000.0,0.0002333,2]
[365114346,1749471046494,-3000.0,0.0002334,2]
[365114347,1749471046503,-3000.0,0.0002334,2]
[365114348,1749471046513,-816.4155173,0.00023348,9]
[365114349,1749471046524,-3000.0,0.0002335,2]
[365114350,1749471046603,-3000.0,0.0002335,2]
[365114351,1749471046614,-3000.0,0.0002336,2]
[365114352,1749471046623,-3000.0,0.0002336,2]
[365114353,1749471046633,-4428.591713,0.0002337,2]
[365114354,1749471046642,-3000.0,0.0002337,2]
[365114355,1749471046651,-363.74015137,0.00023379,2]
[365114356,1749471046661,-3000.0,0.0002338,2]
[365114357,1749471046670,-3000.0,0.0002339,2]
[365114358,1749471046679,-3000.0,0.000234,2]
[365114359,1749471046689,-3000.0,0.0002341,2]
[365114360,1749471046698,-3000.0,0.0002342,2]
[365114361,1749471046708,-3000.0,0.0002343,2]
[365114362,1749471046717,-3000.0,0.0002344,2]
[365114363,1749471046727,-3000.0,0.0002345,2]
[365114364,1749471046736,-816.4155173,0.00023452,9]
[365114365,1749471046745,-2852.58827984,0.0002346,2]
[365114366,1749471047088,-34648.55649645,0.00021913,2]
[365114367,1749471047099,-440.0,0.00021917,4]
[365114368,1749471047108,-440.0,0.00021917,4]
[365114369,1749471047119,-455.0,0.00021917,4]
[365114370,1749471047129,-420.98069705,0.00022191,4]
[365114371,1749471047139,-147.41172016,0.0002346,2]
[365114372,1749471047156,-3000.0,0.0002347,2]
[365114373,1749471047173,-3000.0,0.0002348,2]
[365114374,1749471047189,-3000.0,0.0002349,2]
[365114375,1749471047206,-3000.0,0.000235,2]
[365114376,1749471047223,-514.54290009,0.00023506,2]
[365114377,1749471047240,-3000.0,0.0002351,2]
[365114378,1749471047258,-776.142129,0.0002352,3]
[365114379,1749471047273,-3000.0,0.0002352,2]
[365114380,1749471047291,-3000.0,0.0002353,2]
[365114381,1749471047307,-3000.0,0.0002354,2]
[365114382,1749471047320,-151.0,0.00023549,7]
[365114383,1749471047337,-334090.8875,0.00023549,2]
[365114384,1749471047353,-3000.0,0.0002355,2]
[365114385,1749471047370,-816.4155173,0.00023555,9]
[365114386,1749471047389,-3000.0,0.0002356,2]
[365114387,1749471047404,-440.0,0.00023561,4]
[365114388,1749471047416,-440.0,0.00023561,4]
[365114389,1749471047433,-440.0,0.00023561,4]
[365114390,1749471047449,-272.53,0.00023561,4]
[365114391,1749471047464,-440.0,0.00023561,4]
[365114392,1749471047480,-440.0,0.00023561,4]
[365114393,1749471047492,-440.0,0.00023561,2]
[365114394,1749471047504,-440.0,0.00023561,4]
[365114395,1749471047518,-440.0,0.00023561,4]
[365114396,1749471047532,-1534.98,0.00023561,4]
[365114397,1749471047546,-1422.06,0.00023561,4]
[365114398,1749471047559,-440.0,0.00023561,4]
[365114399,1749471047573,-440.0,0.00023561,4]
[365114400,1749471047586,-2157.1,0.00023561,4]
[365114401,1749471047600,-440.0,0.00023561,4]
[365114402,1749471047613,-2318.14,0.00023561,4]
[365114403,1749471047626,-440.0,0.00023561,4]
[365114404,1749471047639,-487.63070471,0.00023561,4]
[365114405,1749471047652,-1488.32,0.00023561,4]
[365114406,1749471047665,-440.0,0.00023561,4]
[365114407,1749471047679,-164.84601593,0.00023561,4]
[365114408,1749471047692,-505.69,0.00023561,4]
[365114409,1749471047703,-440.0,0.00023561,4]
[365114410,1749471047712,-1814.69,0.00023561,4]
[365114411,1749471047722,-440.0,0.00023561,4]
[365114412,1749471047732,-1888.85,0.00023561,4]
[365114413,1749471047742,-1204.0,0.00023561,4]
[365114414,1749471047751,-440.0,0.00023561,4]
[365114415,1749471047761,-633.32,0.00023561,4]
[365114416,1749471047771,-400.0,0.00023561,4]
[365114417,1749471047782,-583.11,0.00023561,4]
[365114418,1749471047791,-440.0,0.00023561,4]
[365114419,1749471047801,-868.84,0.00023561,4]
[365114420,1749471047810,-595.41,0.00023561,4]
[365114421,1749471047820,-440.0,0.00023561,4]
[365114422,1749471047830,-440.0,0.00023561,4]
[365114423,1749471047840,-440.0,0.00023561,4]
[365114424,1749471047849,-440.0,0.00023561,4]
[365114425,1749471047859,-440.0,0.00023561,4]
[365114426,1749471047868,-440.0,0.00023561,4]
[365114427,1749471047878,-463.21,0.00023561,4]
[365114428,1749471047888,-759.76,0.00023561,4]
[365114429,1749471047898,-1041.58,0.00023561,4]
[365114430,1749471047907,-1334.19,0.00023561,4]
[365114431,1749471047917,-944.6,0.00023561,4]
[365114432,1749471047927,-440.0,0.00023561,4]
[365114433,1749471047937,-440.0,0.00023561,4]
[365114434,1749471047946,-4036.02,0.00023561,4]
[365114435,1749471048149,-430.0,0.00023561,4]
[365114436,1749471048162,-440.0,0.00023561,4]
[365114437,1749471048173,-440.0,0.00023561,4]
[365114438,1749471048183,-1008.09,0.00023561,4]
[365114439,1749471048192,-440.0,0.00023561,4]
[365114440,1749471048202,-941.08,0.00023561,4]
[365114441,1749471048212,-440.0,0.00023561,4]
[365114442,1749471048221,-440.0,0.00023561,4]
[365114443,1749471048232,-1870.11,0.00023561,4]
[365114444,1749471048242,-1500.0,0.00023568,2]
[365114445,1749471048251,-1500.0,0.00023568,2]
[365114446,1749471048261,-1500.0,0.00023568,2]
[365114447,1749471048271,-1472.49512433,0.00023568,2]
[365114448,1749471048283,-1500.0,0.00023568,2]
[365114449,1749471048293,-1800.0,0.00023568,2]
[365114450,1749471048303,-1500.0,0.00023568,2]
[365114451,1749471048313,-504.42537304,0.00023568,2]
[365114452,1749471048323,-3000.0,0.0002357,2]
[365114453,1749471048332,-159.281011,0.00023579,7]
[365114454,1749471048342,-3000.0,0.0002358,2]
[365114455,1749471048351,-3540.08959446,0.00023587,75]
[365114456,1749471048361,-3000.0,0.0002359,2]
[365114457,1749471048372,-3000.0,0.000236,2]
[365114458,1749471048382,-3000.0,0.0002361,2]
[365114459,1749471048392,-3000.0,0.0002362,2]
[365114460,1749471048402,-3000.0,0.0002363,2]
[365114461,1749471048412,-3000.0,0.0002364,2]
[365114462,1749471048421,-3000.0,0.0002365,2]
[365114463,1749471048431,-816.4155173,0.00023659,9]
[365114464,1749471048440,-3000.0,0.0002366,2]
[365114465,1749471048452,-3000.0,0.0002367,2]
[365114466,1749471048463,-3000.0,0.0002368,2]
[365114467,1749471048473,-3000.0,0.0002369,2]
[365114468,1749471048482,-3000.0,0.000237,2]
[365114469,1749471048492,-3000.0,0.0002371,2]
[365114470,1749471048503,-3000.0,0.0002372,2]
[365114471,1749471048513,-3000.0,0.0002373,2]
[365114472,1749471048523,-4074.215066,0.0002374,2]
[365114473,1749471048533,-816.4155173,0.00023762,9]
[365114474,1749471048542,-151.0,0.000238,7]
[365114475,1749471048552,-440.0,0.00023835,4]
[365114476,1749471048562,-440.0,0.00023835,4]
[365114477,1749471048571,-440.0,0.00023835,4]
[365114478,1749471048580,-440.0,0.00023835,4]
[365114479,1749471048590,-440.0,0.00023835,4]
[365114480,1749471048599,-440.0,0.00023835,2]
[365114481,1749471048609,-400.78212784,0.00023835,4]
[365114482,1749471048619,-440.0,0.00023835,4]
[365114483,1749471048628,-1534.98,0.00023835,4]
[365114484,1749471048637,-1422.06,0.00023835,4]
[365114485,1749471048646,-440.0,0.00023835,4]
[365114486,1749471048656,-440.0,0.00023835,4]
[365114487,1749471048665,-2157.1,0.00023835,4]
[365114488,1749471048675,-440.0,0.00023835,4]
[365114489,1749471048684,-2318.14,0.00023835,4]
[365114490,1749471048694,-380.0,0.00023835,4]
[365114491,1749471048703,-1488.32,0.00023835,4]
[365114492,1749471048713,-440.0,0.00023835,4]
[365114493,1749471048723,-505.69,0.00023835,4]
[365114494,1749471048732,-440.0,0.00023835,4]
[365114495,1749471048742,-1814.69,0.00023835,4]
[365114496,1749471048751,-440.0,0.00023835,4]
[365114497,1749471048761,-1888.85,0.00023835,4]
[365114498,1749471048772,-1204.0,0.00023835,4]
[365114499,1749471048784,-440.0,0.00023835,4]
[365114500,1749471048793,-633.32,0.00023835,4]
[365114501,1749471048803,-583.11,0.00023835,4]
[365114502,1749471048813,-440.0,0.00023835,4]
[365114503,1749471048823,-868.84,0.00023835,4]
[365114504,1749471048832,-595.41,0.00023835,4]
[365114505,1749471048842,-440.0,0.00023835,4]
[365114506,1749471048852,-155.82474859,0.00023835,4]
[365114507,1749471048862,-440.0,0.00023835,4]
[365114508,1749471048871,-440.0,0.00023835,4]
[365114509,1749471048881,-554.16392308,0.00023835,4]
[365114510,1749471048890,-440.0,0.00023835,4]
[365114511,1749471048900,-759.76,0.00023835,4]
[365114512,1749471048910,-1041.58,0.00023835,4]
[365114513,1749471048920,-1334.19,0.00023835,4]
[365114514,1749471048930,-944.6,0.00023835,4]
[365114515,1749471048939,-4036.02,0.00023835,4]
[365114516,1749471048949,-440.0,0.00023835,4]
[365114517,1749471048959,-440.0,0.00023835,4]
[365114518,1749471048968,-1008.09,0.00023835,4]
[365114519,1749471048978,-440.0,0.00023835,4]
[365114520,1749471048988,-941.08,0.00023835,4]
[365114521,1749471048998,-440.0,0.00023835,4]
[365114522,1749471049008,-440.0,0.00023835,4]
[365114523,1749471049017,-1870.11,0.00023835,4]
[365114524,1749471049029,-250.0,0.0002386,2]
[365114525,1749471049039,-816.4155173,0.00023866,10]
[365114526,1749471049049,-363.74015137,0.000239,2]
[365114527,1749471049059,-900.04687902,0.000239,2]
[365114528,1749471049069,-900.04687902,0.00023968,2]